fUST/lending_fUST_20241020
["ID","MTS","AMOUNT","RATE_DAILY","PERIOD"]
[340504487,1729374632895,-250.0,0.0001185,2]
[340504488,1729374632904,-250.0,0.00011881,2]
[340504489,1729374632913,-250.0,0.00011912,2]
[340504490,1729374632923,-250.0,0.00011943,2]
[340504491,1729374632934,-160.0,0.00012341,3]
[340504492,1729374632944,-246.0,0.00012554,2]
[340504493,1729374632954,-160.0,0.00012563,4]
[340504494,1729374632963,-420.0,0.00012573,2]
[340504495,1729374632975,-160.0,0.00012785,5]
[340504496,1729374632987,-250.0,0.00012877,2]
[340504497,1729374632997,-1711.7411304,0.0001292,2]
[340504498,1729374633007,-160.0,0.00013006,6]
[340504499,1729374633017,-150.0,0.00013219,2]
[340504500,1729374633027,-1806.0,0.00013219,2]
[340504501,1729374633036,-1143.007,0.00013219,2]
[340504502,1729374633045,-160.0,0.00013228,7]
[340504503,1729374633055,-573.91419285,0.00013275,2]
[340504504,1729374633064,-7000.85876932,0.00013275,2]
[340504505,1729374633073,-377.01794679,0.00013275,2]
[340504506,1729374633087,-12815.05279975,0.00013275,2]
[340504532,1729374638949,-8633.46812109,0.00013275,2]
[340504534,1729374638958,-1148.67307464,0.00013275,2]
[340504557,1729374642734,1200.0,0.00027,60]
[340504572,1729374645830,-322.0,0.00013275,2]
[340504584,1729375462556,156.0,0.00027,60]
[340504924,1729375839873,-168.173704,0.00011629,2]
[340504927,1729375839885,-168.173704,0.00011676,2]
[340504929,1729375839896,-168.173704,0.00011722,2]
[340504931,1729375839907,-168.173704,0.00011769,2]
[340504933,1729375839917,-168.173704,0.00011816,2]
[340504935,1729375839927,-300.0,0.00011816,2]
[340504938,1729375839943,-24900.0,0.00011817,2]
[340504940,1729375839953,-168.173704,0.00011862,2]
[340504942,1729375839963,-168.173704,0.00011909,2]
[340504944,1729375839974,-168.173704,0.00011955,2]
[340504946,1729375839983,-168.173704,0.00012002,2]
[340504948,1729375839992,-168.173704,0.00012049,2]
[340504950,1729375840002,-168.173704,0.00012095,2]
[340504952,1729375840012,-168.173704,0.00012142,2]
[340504955,1729375840021,-156.0,0.0001215,2]
[340504957,1729375840031,-168.173704,0.00012188,2]
[340504959,1729375840040,-168.173704,0.00012235,2]
[340504960,1729375840049,-250.0,0.00012877,2]
[340504961,1729375840059,-1871.8010326,0.0001292,2]
[340504962,1729375840067,-382.6094619,0.00012973,2]
[340504963,1729375840076,-420.0,0.00012973,2]
[340504964,1729375840085,-1029.43282846,0.00013245,2]
[340504965,1729375840095,-4670.92807958,0.00013246,2]
[340504966,1729375840104,-624.7208187,0.00013266,2]
[340504967,1729375840113,-151.0,0.00013345,2]
[340504968,1729375840123,-151.0,0.00013345,2]
[340504969,1729375840133,-151.0,0.00013345,2]
[340504970,1729375840142,-10912.76943382,0.00013345,2]
[340504971,1729375840152,-3500.42938466,0.00013345,2]
[340504972,1729375840164,-8788.19865376,0.00013345,2]
[340504974,1729375840176,-12599.97248363,0.00013345,2]
[340505214,1729375845873,-30457.865459,0.00013345,2]
[340505287,1729377032369,-300.0,0.00012063,2]
[340505288,1729377032381,-300.0,0.00012063,2]
[340505289,1729377032392,-24900.0,0.00012064,2]
[340505290,1729377032404,-169.629419,0.00012093,2]
[340505291,1729377032416,-169.629419,0.00012198,2]
[340505292,1729377032427,-169.629419,0.00012303,2]
[340505293,1729377032436,-169.629419,0.00012408,2]
[340505294,1729377032446,-169.629419,0.00012513,2]
[340505295,1729377032457,-160.0,0.00012563,3]
[340505296,1729377032467,-169.629419,0.00012618,2]
[340505297,1729377032477,-169.629419,0.00012723,2]
[340505298,1729377032487,-250.0,0.00012877,2]
[340505299,1729377032498,-2301.2938314,0.0001292,2]
[340505300,1729377032509,-160.0,0.00013006,4]
[340505301,1729377032520,-538.47774509,0.00013216,2]
[340505302,1729377032712,-926.48954565,0.00013216,2]
[340505303,1729377032726,-158.90604318,0.00013216,2]
[340505304,1729377032736,-660.00378312,0.00013235,2]
[340505305,1729377032745,-420.0,0.00013241,2]
[340505306,1729377032755,-150.112233,0.000133,2]
[340505307,1729377032764,-9749.24215867,0.00013316,2]
[340505308,1729377032774,-6423.14750104,0.00013316,2]
[340505309,1729377032783,-151.0,0.00013316,2]
[340505310,1729377032792,-201.241556,0.00013316,2]
[340505311,1729377032802,-151.0,0.00013316,2]
[340505312,1729377032812,-4706.63653945,0.00013316,2]
[340505333,1729377039830,-349.92561371,0.00013316,2]
[340505340,1729377040152,-90065.59589644,0.00013316,2]
[340505341,1729377040164,-21932.70011873,0.00013316,2]
[340505372,1729378232275,-300.0,0.00011988,2]
[340505373,1729378232285,-300.0,0.00011988,2]
[340505374,1729378232294,-3664.16671729,0.00011989,2]
[340505387,1729378239969,-6073.61507976,0.00011989,2]
[340505392,1729378240290,-15162.21820295,0.00011989,2]
[340505393,1729378240300,-169.6294198,0.00012103,2]
[340505394,1729378240312,-250.0,0.00012877,2]
[340505395,1729378240323,-2468.0404094,0.0001292,2]
[340505396,1729378240334,-594.536392,0.00012945,2]
[340505398,1729378240344,-594.536392,0.00013106,2]
[340505399,1729378240354,-547.92167705,0.00013136,2]
[340505400,1729378240363,-5053.40891598,0.00013136,2]
[340505401,1729378240373,-420.0,0.00013161,2]
[340505402,1729378240382,-877.80035277,0.00013186,2]
[340505403,1729378240391,-762.11512812,0.000132,2]
[340505404,1729378240400,-1000.0,0.00013215,2]
[340505405,1729378240409,-594.536392,0.00013268,2]
[340505406,1729378240419,-300.6908208,0.00013273,2]
[340505407,1729378240428,-500.0,0.00013273,2]
[340505408,1729378240438,-500.0,0.00013273,2]
[340505409,1729378240448,-500.0,0.00013273,2]
[340505410,1729378240457,-500.3415642,0.00013273,2]
[340505411,1729378240467,-500.0,0.00013273,2]
[340505412,1729378240476,-500.0,0.00013273,2]
[340505413,1729378240485,-500.0,0.00013273,2]
[340505414,1729378240494,-500.19200105,0.00013273,2]
[340505415,1729378240503,-500.0,0.00013273,2]
[340505416,1729378240513,-619.84368881,0.00013273,2]
[340505417,1729378240523,-500.0,0.00013273,2]
[340505418,1729378240534,-501.23911136,0.00013273,2]
[340505419,1729378240546,-501.70662504,0.00013273,2]
[340505420,1729378240557,-500.0,0.00013273,2]
[340505421,1729378240570,-500.0,0.00013273,2]
[340505422,1729378240582,-9321.30148811,0.00013286,2]
[340505423,1729378240593,-34969.33026926,0.00013286,2]
[340505424,1729378240638,-54300.08487204,0.00013286,2]
[340505425,1729378240648,-4874.62107934,0.00013286,2]
[340505426,1729378240658,-3211.57375052,0.00013286,2]
[340505427,1729378240670,-9321.30148811,0.00013286,2]
[340505428,1729378240679,-70251.38092913,0.00013286,2]
[340505441,1729378243604,-1920.58715088,0.00013286,2]
[340505447,1729378246284,-6386.08655708,0.00013286,2]
[340505448,1729378246296,-3821.41430996,0.00013286,2]
[340505449,1729378246309,-411.11179919,0.00013286,2]
[340505450,1729378246322,-300.78721,0.00013286,2]
[340505451,1729378246427,-548.53406688,0.00013286,2]
[340505452,1729378246439,-613.5885,0.00013286,2]
[340505453,1729378246452,-1173.6576485,0.00013286,2]
[340505455,1729378803781,500.0,0.0001,2]
[340505456,1729378804155,500.0,0.0001,2]
[340505457,1729378804536,500.0,0.0001,2]
[340505458,1729378804913,162.42895177,0.0001,2]
[340505482,1729379432550,-24900.0,0.00011715,2]
[340505483,1729379432560,-300.0,0.00012131,2]
[340505484,1729379432571,-190.986,0.00012159,2]
[340505485,1729379432581,-190.986,0.00012192,2]
[340505486,1729379432591,-190.986,0.00012225,2]
[340505487,1729379432601,-190.986,0.00012259,2]
[340505488,1729379432611,-190.986,0.00012292,2]
[340505489,1729379432621,-190.986,0.00012325,2]
[340505490,1729379432633,-190.986,0.00012359,2]
[340505491,1729379432644,-190.986,0.00012392,2]
[340505492,1729379432655,-190.986,0.00012425,2]
[340505493,1729379432664,-190.986,0.00012459,2]
[340505494,1729379432674,-190.986,0.00012492,2]
[340505495,1729379432686,-190.986,0.00012525,2]
[340505496,1729379432698,-190.986,0.00012559,2]
[340505497,1729379432709,-190.986,0.00012592,2]
[340505498,1729379432718,-190.986,0.00012625,2]
[340505499,1729379432728,-190.986,0.00012659,2]
[340505500,1729379432738,-190.986,0.00012692,2]
[340505501,1729379432748,-190.986,0.00012725,2]
[340505502,1729379432757,-190.986,0.00012759,2]
[340505503,1729379432766,-190.986,0.00012792,2]
[340505504,1729379432775,-250.0,0.00012877,2]
[340505505,1729379432787,-2205.941993,0.0001292,2]
[340505506,1729379432798,-657.93622287,0.0001292,2]
[340505507,1729379432808,-256.555131,0.00012945,2]
[340505508,1729379432817,-167.092769,0.00012945,2]
[340505509,1729379432829,-300.0,0.00012945,2]
[340505510,1729379432841,-150.715,0.0001307,2]
[340505511,1729379432853,-480.011,0.0001307,2]
[340505512,1729379432864,-258.987,0.0001307,2]
[340505513,1729379432874,-256.555131,0.00013106,2]
[340505514,1729379432883,-829.58410296,0.00013156,2]
[340505515,1729379432892,-895.62052683,0.00013166,2]
[340505516,1729379432902,-1000.0,0.00013176,2]
[340505517,1729379432912,-151.0,0.00013256,2]
[340505518,1729379432923,-151.0,0.00013256,2]
[340505519,1729379432935,-20647.9141133,0.00013256,2]
[340505520,1729379432944,-80534.5869756,0.00013256,2]
[340505521,1729379432954,-20647.9141133,0.00013257,2]
[340505522,1729379432966,-80534.5869756,0.00013257,2]
[340505523,1729379432976,-151.0,0.00013262,2]
[340505524,1729379432985,-151.0,0.00013262,2]
[340505525,1729379432995,-2437.31053967,0.00013262,2]
[340505526,1729379433005,-1605.78687526,0.00013262,2]
[340505527,1729379433015,-20647.9141133,0.00013263,2]
[340505528,1729379433023,-6952.90646218,0.00013263,2]
[340505532,1729379439779,-151.0,0.00013256,2]
[340505533,1729379439789,-151.0,0.00013256,2]
[340505534,1729379439798,-119.76981249,0.00013262,2]
[340505535,1729379439810,-31.23018751,0.00013262,2]
[340505536,1729379439819,-151.0,0.00013262,2]
[340505537,1729379439829,-151.0,0.00013262,2]
[340505538,1729379439838,-8.41481249,0.00013263,2]
[340505539,1729379439851,-583.59536954,0.00013263,2]
[340505543,1729379440588,-72989.67033139,0.00013263,2]
[340505544,1729379440600,-151.0,0.00013265,2]
[340505545,1729379440611,-151.0,0.00013265,2]
[340505546,1729379440622,-151.093641,0.00013265,2]
[340505547,1729379440631,-151.0,0.00013265,2]
[340505548,1729379440641,-151.0,0.00013265,2]
[340505549,1729379440651,-151.0,0.00013265,2]
[340505550,1729379440660,-151.0,0.00013265,2]
[340505551,1729379440670,-20647.9141133,0.00013265,2]
[340505552,1729379440682,-80534.5869756,0.00013265,2]
[340505553,1729379440691,-20647.9141133,0.00013266,2]
[340505554,1729379440700,-15583.10131958,0.00013266,2]
[340505574,1729379443665,-151.0,0.00013256,2]
[340505575,1729379443675,-151.0,0.00013262,2]
[340505576,1729379443686,-151.0,0.00013265,2]
[340505577,1729379443697,-17.30864695,0.00013265,2]
[340505578,1729379443709,-133.69135305,0.00013265,2]
[340505579,1729379443719,-178.00668242,0.00013266,2]
[340505580,1729379443730,-2931.61949283,0.00013266,2]
[340505581,1729379446552,-59491.96638687,0.00013266,2]
[340505582,1729379446568,-1826.32858962,0.00013266,2]
[340505583,1729379446582,-523.56450428,0.00013266,2]
[340505584,1729379446592,-370.34131909,0.00013266,2]
[340505618,1729380417596,-14088.0,0.00011668,2]
[340505652,1729380632773,-300.0,0.00011667,2]
[340505654,1729380632784,-300.0,0.00011667,2]
[340505656,1729380632794,-10178.81196991,0.00011668,2]
[340505705,1729380640982,-633.18803009,0.00011668,2]
[340505706,1729380640992,-160.848169,0.0001206,2]
[340505707,1729380641002,-160.848169,0.00012139,2]
[340505708,1729380641012,-160.848169,0.00012217,2]
[340505709,1729380641021,-160.848169,0.00012296,2]
[340505710,1729380641032,-160.848169,0.00012374,2]
[340505711,1729380641042,-160.848169,0.00012453,2]
[340505712,1729380641052,-264.542389,0.000125,2]
[340505713,1729380641062,-160.848169,0.00012531,2]
[340505714,1729380641072,-160.848169,0.0001261,2]
[340505715,1729380641082,-160.848169,0.00012689,2]
[340505716,1729380641091,-420.0,0.00012812,2]
[340505717,1729380641104,-160.0,0.00012859,3]
[340505718,1729380641114,-250.0,0.00012877,2]
[340505719,1729380641124,-1964.7535944,0.0001292,2]
[340505720,1729380641133,-153.0,0.00012952,2]
[340505721,1729380641143,-775.46769237,0.00013162,2]
[340505722,1729380641152,-653.81488988,0.00013256,2]
[340505723,1729380641162,-17916.7599921,0.00013256,2]
[340505724,1729380641172,-13660.63790805,0.00013256,2]
[340505804,1729381838926,-300.0,0.00010827,2]
[340505805,1729381838937,-1255.01255968,0.00010828,2]
[340505806,1729381838984,-684.73,0.00010828,2]
[340505841,1729381845804,-22960.25744032,0.00010828,2]
[340505842,1729381845814,-414.7327312,0.00010889,2]
[340505843,1729381845824,-202.9125367,0.00010913,2]
[340505844,1729381845834,-3000.0,0.0001092,2]
[340505845,1729381845843,-250.0,0.00011029,2]
[340505846,1729381845853,-5278.5235192,0.00011035,2]
[340505847,1729381845862,-435.87659325,0.00011035,2]
[340505848,1729381845872,-166.154544,0.0001164,2]
[340505849,1729381845881,-166.154544,0.00011686,2]
[340505850,1729381845890,-166.154544,0.00011733,2]
[340505851,1729381845899,-166.154544,0.0001178,2]
[340505852,1729381845909,-166.154544,0.00011826,2]
[340505853,1729381845918,-166.154544,0.00011873,2]
[340505854,1729381845927,-420.0,0.000119,2]
[340505855,1729381845939,-2930.87032658,0.00011913,2]
[340505856,1729381845951,-166.154544,0.0001192,2]
[340505857,1729381845962,-166.154544,0.00011966,2]
[340505858,1729381845973,-166.154544,0.00012013,2]
[340505859,1729381845983,-166.154544,0.0001206,2]
[340505860,1729381845992,-166.154544,0.00012106,2]
[340505861,1729381846002,-166.154544,0.00012153,2]
[340505862,1729381846013,-166.154544,0.000122,2]
[340505863,1729381846024,-2930.87032656,0.00012225,2]
[340505864,1729381846035,-166.154544,0.00012246,2]
[340505865,1729381846046,-2930.87032656,0.00012537,2]
[340505866,1729381846058,-804.22070859,0.00012777,2]
[340505867,1729381846070,-1218.65526983,0.00012849,2]
[340505868,1729381846081,-802.89343763,0.00012849,2]
[340505869,1729381846092,-2930.87032656,0.00012849,2]
[340505870,1729381846103,-153.0,0.00012849,2]
[340505871,1729381846113,-250.0,0.00012877,2]
[340505872,1729381846122,-1719.0673738,0.0001292,2]
[340505873,1729381846132,-184.128535,0.00012945,2]
[340505874,1729381846142,-6190.0,0.00013,2]
[340505875,1729381846155,-587.0,0.00013079,2]
[340505876,1729381846167,-351.83828601,0.0001315,2]
[340505877,1729382063299,156.34,0.00027,60]
[340505882,1729382431762,150.0,0.00026021,120]
[340505898,1729382494238,150.0,0.00025162,120]
[340505900,1729382505230,1000.0,0.00027,60]
[340505939,1729383031955,-300.0,0.00011765,2]
[340505941,1729383031965,-186.54876236,0.00011766,2]
[340505991,1729383043013,-1855.12953297,0.00011766,2]
[340505996,1729383046090,-22858.32170467,0.00011766,2]
[340505997,1729383046102,-181.251009,0.00012195,2]
[340505998,1729383046112,-181.251009,0.00012207,2]
[340505999,1729383046122,-181.251009,0.00012219,2]
[340506000,1729383046131,-181.251009,0.00012231,2]
[340506001,1729383046141,-181.251009,0.00012244,2]
[340506002,1729383046150,-181.251009,0.00012256,2]
[340506003,1729383046160,-250.0,0.00012877,2]
[340506004,1729383046170,-420.0,0.00012918,2]
[340506005,1729383046366,-1375.2538992,0.0001292,2]
[340506006,1729383046379,-197.954297,0.00012945,2]
[340506007,1729383046389,-153.0,0.00013,2]
[340506008,1729383046399,-153.0,0.00013,2]
[340506009,1729383046409,-153.0,0.00013,2]
[340506010,1729383046418,-586.17406532,0.00013032,2]
[340506011,1729383046427,-846.42120671,0.00013032,2]
[340506012,1729383046437,-349.87695259,0.00013032,2]
[340506013,1729383046446,-586.17406531,0.00013035,2]
[340506014,1729383046458,-586.17406531,0.00013037,2]
[340506015,1729383046469,-586.17406531,0.0001304,2]
[340506016,1729383046478,-586.17406531,0.00013042,2]
[340506017,1729383046488,-1818.32478246,0.00013052,2]
[340506018,1729383046497,-377.25186169,0.0001307,2]
[340506019,1729383046506,-153.0,0.000131,2]
[340506020,1729383046516,-150.112233,0.000131,2]
[340506021,1729383046525,-150.112233,0.000131,2]
[340506022,1729383046535,-150.112233,0.000131,2]
[340506023,1729383046546,-197.954297,0.00013106,2]
[340506024,1729383046555,-609.32763492,0.00013131,2]
[340506025,1729383046565,-401.44671881,0.00013131,2]
[340506026,1729383046574,-17045.2494306,0.00013131,2]
[340506027,1729383046583,-59717.908336,0.00013131,2]
[340506028,1729383046592,-151.0,0.00013141,2]
[340506029,1729383046602,-220.828188,0.00013141,2]
[340506030,1729383046611,-206.50379,0.00013141,2]
[340506031,1729383046621,-206.361988,0.00013141,2]
[340506032,1729383046630,-151.0,0.00013141,2]
[340506033,1729383046638,-206.361988,0.00013141,2]
[340506034,1729383046647,-244.792248,0.00013141,2]
[340506035,1729383046656,-151.0,0.00013141,2]
[340506036,1729383046666,-34090.4988612,0.00013142,2]
[340506037,1729383046675,-96198.70927247,0.00013142,2]
[340506038,1729383091263,150.0,0.00024023,120]
[340506039,1729383142708,273.37336231,9.9e-05,2]
[340506040,1729383151021,273.37336231,9.9e-05,2]
[340506041,1729383159284,273.37336231,9.9e-05,2]
[340506042,1729383167701,273.37336231,9.9e-05,2]
[340506043,1729383176412,273.37336231,9.9e-05,2]
[340506044,1729383184223,273.37336231,9.9e-05,2]
[340506045,1729383192279,273.37336231,9.9e-05,2]
[340506046,1729383200019,273.37336231,9.9e-05,2]
[340506047,1729383211405,150.0,0.0001796,120]
[340506050,1729383331285,150.0,0.0002032,120]
[340506051,1729383391238,150.0,0.00023215,120]
[340506056,1729383668024,24900.0,0.0001014,2]
[340506124,1729384239457,-342.02,0.00010459,2]
[340506228,1729384246155,-24557.98,0.00010459,2]
[340506229,1729384246164,-158.2537,0.00010884,2]
[340506230,1729384246173,-158.2537,0.00010888,2]
[340506231,1729384246185,-158.2537,0.00010893,2]
[340506232,1729384246194,-158.2537,0.00010897,2]
[340506233,1729384246204,-158.2537,0.00010901,2]
[340506234,1729384246215,-158.2537,0.00010905,2]
[340506235,1729384246228,-158.2537,0.00010909,2]
[340506236,1729384246239,-158.2537,0.00010914,2]
[340506237,1729384246249,-158.2537,0.00010918,2]
[340506238,1729384246259,-158.2537,0.00010922,2]
[340506239,1729384246268,-158.2537,0.00010926,2]
[340506240,1729384246278,-158.2537,0.0001093,2]
[340506241,1729384246287,-158.2537,0.00010935,2]
[340506242,1729384246297,-158.2537,0.00010939,2]
[340506243,1729384246308,-518.92,0.00010959,2]
[340506244,1729384246319,-432.43,0.00010959,2]
[340506245,1729384246329,-360.36,0.00010959,2]
[340506246,1729384246338,-300.3,0.00010959,2]
[340506247,1729384246346,-250.25,0.00010959,2]
[340506248,1729384246357,-208.54,0.00010959,2]
[340506249,1729384246367,-173.78,0.00010959,2]
[340506250,1729384246376,-150.0,0.000114,2]
[340506251,1729384246386,-150.0,0.000124,2]
[340506252,1729384246395,-414.7253715,0.00012411,2]
[340506253,1729384246404,-165.48505869,0.0001245,2]
[340506254,1729384246413,-153.0,0.00012478,2]
[340506255,1729384246422,-300.0,0.00012499,2]
[340506256,1729384246431,-300.0,0.00012499,2]
[340506257,1729384246440,-217.8751584,0.000125,2]
[340506258,1729384246450,-414.7253715,0.000125,2]
[340506259,1729384246459,-153.0,0.000125,2]
[340506260,1729384246469,-452.5824006,0.000125,2]
[340506261,1729384246479,-414.7253715,0.000125,2]
[340506262,1729384246489,-414.7253715,0.000125,2]
[340506263,1729384246499,-153.0,0.000125,2]
[340506264,1729384246508,-551.38766459,0.00012547,2]
[340506265,1729384246517,-30993.487104,0.00012547,2]
[340506266,1729384246526,-500.0,0.0001255,2]
[340506267,1729384246535,-500.0,0.0001255,2]
[340506268,1729384246544,-500.0,0.0001255,2]
[340506269,1729384246553,-500.0,0.0001255,2]
[340506270,1729384246562,-500.0,0.0001255,2]
[340506271,1729384246571,-500.0,0.0001255,2]
[340506272,1729384246580,-500.0,0.0001255,2]
[340506273,1729384246589,-500.0,0.0001255,2]
[340506274,1729384246598,-500.0,0.0001255,2]
[340506275,1729384246607,-500.0,0.0001255,2]
[340506276,1729384246616,-500.0,0.0001255,2]
[340506277,1729384246625,-500.0,0.0001255,2]
[340506278,1729384246634,-500.0,0.0001255,2]
[340506279,1729384246644,-500.0,0.0001255,2]
[340506280,1729384246654,-500.0,0.0001255,2]
[340506281,1729384246665,-500.0,0.0001255,2]
[340506282,1729384246674,-459.24,0.0001255,2]
[340506283,1729384246683,-792.4347283,0.00012652,2]
[340506284,1729384246693,-153.0,0.00012752,2]
[340506285,1729384246702,-153.0,0.00012752,2]
[340506286,1729384246711,-153.0,0.00012752,2]
[340506287,1729384246721,-153.0,0.00012778,2]
[340506288,1729384246730,-153.0,0.00012778,2]
[340506289,1729384246739,-150.0,0.00012824,2]
[340506290,1729384246749,-1391.6497858,0.00012825,2]
[340506291,1729384246758,-153.0,0.00012849,2]
[340506292,1729384246767,-153.0,0.00012849,2]
[340506293,1729384246777,-153.0,0.00012849,2]
[340506294,1729384246786,-153.0,0.00012849,2]
[340506295,1729384246795,-153.0,0.00012849,2]
[340506296,1729384246804,-153.0,0.00012849,2]
[340506297,1729384246814,-153.0,0.00012849,2]
[340506298,1729384246823,-153.0,0.00012849,2]
[340506299,1729384246832,-153.0,0.00012849,2]
[340506300,1729384246841,-306.0,0.00012849,2]
[340506301,1729384246850,-153.0,0.00012849,2]
[340506302,1729384246859,-153.0,0.00012849,2]
[340506303,1729384246868,-7401.23334489,0.00012864,2]
[340506304,1729384246877,-250.0,0.00012877,2]
[340506305,1729384246886,-165.48505869,0.00012879,2]
[340506306,1729384246896,-1000.0,0.00012889,2]
[340506307,1729384246906,-2170.16920548,0.00012889,2]
[340506308,1729384246917,-179.622901,0.00012968,2]
[340506309,1729384246929,-179.622901,0.00012968,2]
[340506310,1729384246940,-302.655907,0.00012968,2]
[340506311,1729384246951,-28775.676666,0.00012969,2]
[340506312,1729384246963,-27686.84457329,0.00012969,2]
[340506356,1729385432299,-868.95,0.00010959,2]
[340506357,1729385432309,-300.0,0.000119,2]
[340506358,1729385432318,-300.0,0.000119,2]
[340506359,1729385432327,-4089.403324,0.000119,2]
[340506394,1729385439714,-683.08,0.000119,2]
[340506503,1729385441425,-23490.4818428,0.000119,2]
[340506504,1729385441436,-367.59177639,0.00011903,2]
[340506505,1729385441448,-19964.2222012,0.00011903,2]
[340506506,1729385441457,-4600.74725208,0.00012742,2]
[340506507,1729385441502,-2800.48609282,0.00012742,2]
[340506508,1729385441513,-2258.33984487,0.00012748,2]
[340506509,1729385441522,-153.0,0.000128,2]
[340506510,1729385441531,-153.0,0.000128,2]
[340506511,1729385441539,-1113.3198288,0.00012825,2]
[340506512,1729385441549,-151.0,0.00012838,2]
[340506513,1729385441558,-151.0,0.00012838,2]
[340506514,1729385441568,-26521.01522969,0.00012838,2]
[340506515,1729385441578,-802.76179652,0.00012838,2]
[340506516,1729385441592,-12277.12992418,0.00012838,2]
[340506517,1729385441602,-37052.2574117,0.00012838,2]
[340506518,1729385441611,-71343.3583873,0.00012838,2]
[340506519,1729385441622,-111156.772235,0.00012838,2]
[340506520,1729385441633,-66903.5426582,0.00012838,2]
[340506537,1729385446302,-35756.43301909,0.00012838,2]
[340506538,1729385446357,-111370.09948471,0.00012838,2]
[340506539,1729385446367,-151.0,0.00012839,2]
[340506540,1729385446377,-151.0,0.00012839,2]
[340506541,1729385446389,-151.0,0.00012839,2]
[340506542,1729385446399,-190.882524,0.00012839,2]
[340506543,1729385446410,-151.0,0.00012848,2]
[340506544,1729385446420,-151.0,0.00012848,2]
[340506545,1729385446431,-1346.86781,0.00012848,2]
[340506546,1729385446440,-1346.86781,0.00012848,2]
[340506547,1729385446449,-3000.0,0.00012848,2]
[340506548,1729385446458,-2586.93194609,0.00012848,2]
[340506640,1729386632700,-154.10273018,0.00012348,2]
[340506642,1729386632710,-300.0,0.00012717,2]
[340506656,1729386632720,-300.0,0.00012717,2]
[340506659,1729386632900,-503.6020427,0.00012718,2]
[340506661,1729386632911,-7211.93265931,0.00012718,2]
[340506755,1729386646801,-24018.28489459,0.00012718,2]
[340506756,1729386646810,-44331.55360838,0.00012718,2]
[340506757,1729386774826,273.37336231,9.9e-05,2]
[340506758,1729386782631,273.37336231,9.9e-05,2]
[340506759,1729386791732,273.37336231,9.9e-05,2]
[340506760,1729386800540,273.37336231,9.9e-05,2]
[340506761,1729386809089,273.37336231,9.9e-05,2]
[340506762,1729386816870,273.37336231,9.9e-05,2]
[340506786,1729387824792,405.6,0.000104,2]
[340506889,1729387843194,-244.82817747,0.00012581,2]
[340506890,1729387843204,-1000.0,0.00012588,2]
[340506891,1729387843214,-2114.60244012,0.00012599,2]
[340506892,1729387843223,-890.655863,0.00012635,2]
[340506893,1729387843233,-300.0,0.00012658,2]
[340506894,1729387843243,-300.0,0.00012658,2]
[340506895,1729387843253,-19232.47011517,0.00012658,2]
[340506910,1729387845949,-1764.84796517,0.00012658,2]
[340506911,1729387845960,-5862.51440331,0.00012659,2]
[340506915,1729388262489,1500.0,0.00027,60]
[340506927,1729388977237,9144.0,0.00010403,2]
[340506928,1729389020992,209.0,0.00027,60]
[340506984,1729389039067,-320.1855609,0.00011439,2]
[340506986,1729389039077,-209.300435,0.00011552,2]
[340506987,1729389039087,-209.300435,0.00012154,2]
[340506988,1729389039099,-315.90710658,0.00012447,2]
[340506989,1729389039571,-397.61869936,0.00012447,2]
[340506992,1729389039581,-186.61623462,0.00012472,2]
[340507001,1729389039976,-1800.73221778,0.00012472,2]
[340507003,1729389039986,-300.0,0.00012499,2]
[340507004,1729389039996,-300.0,0.00012499,2]
[340507006,1729389040006,-153.0,0.000125,2]
[340507008,1729389040017,-5000.0,0.000125,2]
[340507010,1729389040026,-153.0,0.000125,2]